bitfinex-derivatives/quotes_BNBF0:USTF0_20250524
["timestamp","ask_amount","ask_price","bid_price","bid_amount"]
[1748049566721,1.09681493,662.44,661.93,2.393]
[1748049566921,1.09681493,662.43,661.93,2.393]
[1748049567118,1.09681493,662.42,661.93,2.393]
[1748049567316,1.09722041,662.41,661.93,2.393]
[1748049567515,1.09722041,662.4,661.93,2.393]
[1748049567841,1.09722041,662.39,661.93,2.393]
[1748049568015,1.09722041,662.38,661.93,2.393]
[1748049568215,0.30190502,662.46,661.93,2.393]
[1748049568422,1.5941471,662.45,661.93,2.393]
[1748049568719,1.5941471,662.44,661.93,2.393]
[1748049568921,1.5941471,662.43,661.93,2.393]
[1748049569121,0.30190502,662.46,661.93,2.393]
[1748049569122,1.5941471,662.42,661.93,2.393]
[1748049569321,1.5941471,662.41,661.93,2.393]
[1748049569521,1.5941471,662.4,661.93,2.393]
[1748049569722,1.5941471,662.39,661.93,2.393]
[1748049569922,1.09759066,662.38,661.93,2.393]
[1748049570123,1.09759066,662.37,661.93,2.393]
[1748049570422,1.09759066,662.36,661.93,2.393]
[1748049570621,1.09759066,662.35,661.93,2.393]
[1748049570821,0.30190502,662.46,661.93,2.393]
[1748049571024,1.59479451,662.45,661.93,2.393]
[1748049571220,1.59479451,662.44,661.93,2.393]
[1748049571417,1.59479451,662.43,661.93,2.393]
[1748049571621,1.59479451,662.42,661.93,2.393]
[1748049571823,1.59479451,662.41,661.93,2.393]
[1748049572022,1.59466527,662.4,661.93,2.393]
[1748049572325,1.59466527,662.39,661.93,2.393]
[1748049572622,1.09794726,662.38,661.93,2.393]
[1748049572820,1.09794726,662.37,661.93,2.393]
[1748049573023,1.09794726,662.36,661.93,2.393]
[1748049573221,1.12873061,662.45,661.93,2.393]
[1748049573422,1.59372167,662.44,661.93,2.393]
[1748049573720,1.59370954,662.43,661.93,2.393]
[1748049573930,1.59370954,662.42,661.93,2.393]
[1748049574121,1.59370954,662.41,661.93,2.393]
[1748049574321,1.09774801,662.4,661.93,2.393]
[1748049574526,1.09774801,662.39,661.93,2.393]
[1748049574822,1.09774801,662.38,661.93,2.393]
[1748049575029,1.09774801,662.37,661.93,2.393]
[1748049575236,1.0976053,662.36,661.93,2.393]
[1748049575425,1.09760911,662.35,661.93,2.393]
[1748049575624,1.09760911,662.34,661.93,2.393]
[1748049575826,1.59356128,662.33,661.93,2.393]
[1748049576026,1.59356128,662.32,661.93,2.393]
[1748049576329,1.09760911,662.31,661.93,2.393]
[1748049576529,1.09760911,662.3,661.93,2.393]
[1748049576728,1.12873061,662.44,661.93,1.092]
[1748049577424,0.30191869,662.43,661.93,1.092]
[1748049580630,0.30191869,662.43,661.93,2.307]
[1748049582833,1.094034,662.42,661.93,2.307]
[1748049583037,1.094034,662.41,661.93,2.307]
[1748049583232,0.30191869,662.43,661.93,2.307]
[1748049583539,1.09405,662.42,661.93,2.307]
[1748049583735,1.09405,662.41,661.93,2.307]
[1748049584034,1.09405,662.4,661.93,2.307]
[1748049584230,1.09405,662.39,661.93,2.307]
[1748049584426,0.30191869,662.43,661.93,2.307]
[1748049584627,1.0913218,662.42,661.93,2.307]
[1748049584834,1.0913218,662.41,661.93,2.307]
[1748049585034,1.0913218,662.4,661.93,2.307]
[1748049585235,1.09133102,662.39,661.93,2.307]
[1748049585435,1.09133102,662.38,661.93,2.307]
[1748049585635,1.09133102,662.37,661.93,2.307]
[1748049585831,1.09133102,662.36,661.93,2.307]
[1748049586036,0.30191869,662.43,661.93,2.307]
[1748049586238,1.5819676,662.42,661.93,2.307]
[1748049586436,1.5819676,662.41,661.93,2.307]
[1748049586638,1.5819676,662.4,661.93,2.307]
[1748049586834,1.09130719,662.39,661.93,2.307]
[1748049587033,1.09130719,662.38,661.93,2.307]
[1748049587237,1.09130719,662.37,661.93,2.307]
[1748049587438,1.09130719,662.36,661.93,2.307]
[1748049587638,0.30191869,662.43,661.93,2.307]
[1748049587840,1.58199625,662.42,661.93,2.307]
[1748049588042,1.58199625,662.41,661.93,2.307]
[1748049588252,1.09128364,662.4,661.93,2.307]
[1748049588446,1.09128364,662.39,661.93,2.307]
[1748049588648,1.58198757,662.38,661.93,2.307]
[1748049588938,1.58198757,662.37,661.93,2.307]
[1748049589145,1.58198757,662.36,661.93,2.307]
[1748049589344,0.30191869,662.43,661.93,2.307]
[1748049589345,1.58198757,662.35,661.93,2.307]
[1748049589543,1.58198757,662.34,661.93,2.307]
[1748049589744,1.58198757,662.33,661.93,2.307]
[1748049589945,1.09128364,662.32,661.93,2.307]
[1748049590249,1.09128364,662.31,661.93,2.307]
[1748049590553,0.30191869,662.43,661.93,2.307]
[1748049590746,1.5818552,662.42,661.93,2.307]
[1748049590947,1.5818552,662.41,661.93,2.307]
[1748049591145,1.5818552,662.4,661.93,2.307]
[1748049591343,1.5818552,662.39,661.93,2.307]
[1748049591644,1.5818552,662.38,661.93,2.307]
[1748049591941,1.58176871,662.37,661.93,2.307]
[1748049592144,1.58176871,662.36,661.93,2.307]
[1748049592342,1.58176871,662.35,661.93,2.307]
[1748049592542,1.58176871,662.34,661.93,2.307]
[1748049592744,1.09122425,662.33,661.93,2.307]
[1748049592952,1.09122425,662.32,661.93,2.307]
[1748049593150,1.09122425,662.31,661.93,2.307]
[1748049593339,1.09122425,662.3,661.93,2.307]
[1748049593545,1.12873061,662.36,661.93,2.307]
[1748049593745,1.58140153,662.35,661.93,2.307]
[1748049594046,1.58140153,662.34,661.93,2.307]
[1748049594246,1.09094522,662.33,661.93,2.307]
[1748049594447,1.09094522,662.32,661.93,2.307]
[1748049594649,1.09094522,662.31,661.93,2.307]
[1748049594850,1.09094522,662.3,661.93,2.307]
[1748049595055,1.12873061,662.36,661.93,2.307]
[1748049596453,0.30191869,662.43,661.93,2.307]
[1748049596750,1.09089025,662.42,661.93,2.307]
[1748049596950,1.09089025,662.41,661.93,2.307]
[1748049597150,1.09089025,662.4,661.93,2.307]
[1748049597345,0.30191869,662.43,661.93,2.307]
[1748049597548,1.09013457,662.42,661.93,2.307]
[1748049597753,1.09013457,662.41,661.93,2.307]
[1748049597951,0.30191869,662.43,661.93,2.307]
[1748049598152,1.09020694,662.42,661.93,2.307]
[1748049598450,1.09020694,662.41,661.93,2.307]
[1748049598751,1.09028611,662.4,661.93,2.307]
[1748049599050,0.30191869,662.43,661.93,2.307]
[1748049599252,1.09033314,662.42,661.93,2.307]
[1748049599452,1.09033314,662.41,661.93,2.307]
[1748049599652,0.30191869,662.43,661.93,2.307]
[1748049599954,1.09039302,662.42,661.93,2.307]
[1748049600155,0.30191869,662.43,661.93,2.307]
[1748049600454,1.09037551,662.42,661.93,2.307]
[1748049600754,0.30191869,662.43,661.93,2.307]
[1748049614568,1.12873061,662.68,661.93,2.307]
[1748049617876,1.12873061,662.87,662.13,1.11902687]
[1748049618174,1.57838024,662.86,662.13,1.11902687]
[1748049618468,1.08864396,662.85,662.13,1.11902687]
[1748049618667,1.08864396,662.84,662.13,1.11902687]
[1748049618869,1.08864396,662.83,662.13,1.11902687]
[1748049619073,1.12873061,662.87,662.13,1.11902687]
[1748049619274,1.08744039,662.86,662.13,1.11902687]
[1748049619472,1.08744039,662.85,662.13,1.11902687]
[1748049619673,1.08744039,662.84,662.13,1.11902687]
[1748049619973,1.12873061,662.87,662.13,1.11902687]
[1748049620169,1.08656949,662.86,662.13,1.11902687]
[1748049620372,1.08656949,662.85,662.13,1.11902687]
[1748049620570,1.08656949,662.84,662.13,1.11902687]
[1748049620770,1.12873061,662.87,662.14,1.009]
[1748049620973,1.08623977,662.86,662.14,1.009]
[1748049621274,1.08623977,662.85,662.14,1.009]
[1748049621473,1.12873061,662.93,662.14,1.009]
[1748049621670,1.57504549,662.92,662.15,1.237]
[1748049621871,1.57504549,662.91,662.15,1.237]
[1748049622081,1.57504549,662.9,662.15,1.237]
[1748049622270,1.57504549,662.89,662.15,1.237]
[1748049622572,1.08592705,662.88,662.15,1.237]
[1748049622772,1.08592705,662.87,662.15,1.237]
[1748049622983,1.38764988,662.86,662.15,1.237]
[1748049623174,1.38718029,662.85,662.15,1.237]
[1748049623373,1.38719737,662.84,662.15,1.237]
[1748049623574,1.38720192,662.83,662.15,1.237]
[1748049623869,1.38720647,662.82,662.15,1.237]
[1748049624075,1.38721102,662.81,662.15,1.237]
[1748049624272,1.38721558,662.8,662.15,1.237]
[1748049624575,1.08546543,662.79,662.15,1.237]
[1748049624771,0.30175015,662.8,662.15,1.237]
[1748049624973,1.08532993,662.79,662.15,1.237]
[1748049625175,0.30175015,662.8,662.15,1.237]
[1748049643603,0.30175015,662.8,662.02,1.11902687]
[1748049643804,0.30175015,662.8,662.16,1.318]
[1748049647003,0.30175015,662.8,662.17,1.38]
[1748049666014,0.30175015,662.8,662.16,1.318]
[1748049667112,1.08840774,662.79,662.16,1.318]
[1748049667311,1.08840774,662.78,662.16,1.318]
[1748049667516,1.08840774,662.77,662.16,1.318]
[1748049667713,0.30175015,662.8,662.16,1.318]
[1748049667919,1.0881041,662.79,662.14,1.11902687]
[1748049668219,1.0881041,662.78,662.13,1.11902687]
[1748049668518,1.0881041,662.77,662.13,1.11902687]
[1748049668719,1.0881041,662.76,662.13,1.11902687]
[1748049668919,0.30175015,662.8,662.13,1.11902687]
[1748049669321,1.08873054,662.79,662.13,1.11902687]
[1748049669524,0.30175015,662.8,662.13,1.11902687]
[1748049669820,0.30175015,662.8,662.14,0.98]
[1748049671623,0.30175015,662.8,662.15,1.413]
[1748049674824,0.30175015,662.8,662.15,2.53202687]
[1748049677830,0.30175015,662.8,662.16,1.11902687]
[1748049680332,0.30175015,662.8,662.27,1.11902687]
[1748049688337,0.30175015,662.8,662.31,1.11902687]
[1748049691246,0.30175015,662.8,662.31,2.42502687]
[1748049691843,0.30175015,662.8,662.33,1.11902687]
[1748049695147,0.30175015,662.8,662.34,1.11902687]
[1748049698150,0.30175015,662.8,662.35,1.11902687]
[1748049704259,0.30175015,662.8,662.32,1.11902687]
[1748049708056,0.30175015,662.8,662.33,1.11902687]
[1748049710958,0.30175015,662.8,662.34,1.377]
[1748049727368,0.30175015,662.8,662.37,1.11902687]
[1748049729879,0.30175015,662.8,662.39,1.11902687]
[1748049731179,0.30175015,662.8,662.4,0.973]
[1748049733280,0.30175015,662.8,662.4,2.09202687]
[1748049735485,1.12873061,663.04,662.4,2.09202687]
[1748049735686,1.58146453,663.03,662.4,2.09202687]
[1748049735882,1.5814615,663.02,662.4,0.973]
[1748049736087,1.5814615,663.01,662.4,0.973]
[1748049736289,1.5814615,663.0,662.4,0.973]
[1748049736493,1.5814615,662.99,662.4,0.973]
[1748049736686,1.5814615,662.98,662.4,0.973]
[1748049736884,1.5814615,662.97,662.4,0.973]
[1748049737087,1.09008053,662.96,662.4,0.973]
[1748049737284,1.09008053,662.95,662.4,0.973]
[1748049737491,1.12873061,663.14,662.4,0.973]
[1748049737690,1.581167,663.13,662.4,0.973]
[1748049737988,1.581167,663.12,662.4,0.973]
[1748049738193,1.581167,663.11,662.4,0.973]
[1748049738488,1.581167,663.1,662.4,0.973]
[1748049738689,1.581167,663.09,662.4,0.973]
[1748049738890,1.581167,663.08,662.4,0.973]
[1748049739091,1.581167,663.07,662.4,0.973]
[1748049739295,1.581167,663.06,662.4,0.973]
[1748049739591,1.581167,663.05,662.4,0.973]
[1748049739792,1.581167,663.04,662.4,0.973]
[1748049739989,1.581167,663.03,662.4,0.973]
[1748049740194,1.581167,663.02,662.4,0.973]
[1748049740392,1.581167,663.01,662.4,0.973]
[1748049740595,1.08987989,663.0,662.4,0.973]
[1748049740793,1.08987989,662.99,662.4,0.973]
[1748049740993,1.08987989,662.98,662.4,0.973]
[1748049741195,1.08987989,662.97,662.4,0.973]
[1748049741496,1.12873061,663.18,662.4,0.973]
[1748049741794,1.88205485,663.17,662.41,1.377]
[1748049741995,1.8820594,663.16,662.41,1.377]
[1748049742197,1.88206395,663.15,662.41,1.377]
[1748049742390,1.58047306,663.14,662.41,1.377]
[1748049742594,1.58047306,663.13,662.41,1.377]
[1748049742795,1.58047306,663.12,662.41,1.377]
[1748049743096,1.58039217,663.11,662.41,1.377]
[1748049743298,1.58039217,663.1,662.41,1.377]
[1748049743498,1.58039217,663.09,662.41,1.377]
[1748049743812,1.58039217,663.08,662.41,1.377]
[1748049743992,1.58039217,663.07,662.41,1.377]
[1748049744195,1.58039217,663.06,662.41,1.377]
[1748049744399,1.58039217,663.05,662.41,1.377]
[1748049744597,1.58039217,663.04,662.41,1.377]
[1748049744893,1.0894218,663.03,662.41,1.377]
[1748049745094,1.0894218,663.02,662.41,1.377]
[1748049745296,1.0894218,663.01,662.41,1.377]
[1748049745498,0.30159089,663.15,662.41,1.377]
[1748049745699,1.57977287,663.14,662.41,1.377]
[1748049745998,1.57977287,663.13,662.41,1.377]
[1748049746200,1.57977287,663.12,662.41,1.377]
[1748049746398,1.57977287,663.11,662.41,1.377]
[1748049746594,1.57972886,663.1,662.41,1.377]
[1748049746894,1.57972886,663.09,662.42,1.11902687]
[1748049747093,1.57972886,663.08,662.42,1.11902687]
[1748049747292,1.57972886,663.07,662.42,1.11902687]
[1748049747492,1.57972886,663.06,662.42,1.11902687]
[1748049747791,1.57963643,663.05,662.42,1.11902687]
[1748049747996,1.08895062,663.04,662.42,1.11902687]
[1748049748197,1.08895062,663.03,662.42,1.11902687]
[1748049748407,1.08908745,663.02,662.42,1.11902687]
[1748049748601,1.4303215,663.15,662.42,1.11902687]
[1748049748800,1.57961364,663.14,662.42,1.11902687]
[1748049749103,1.57961364,663.13,662.42,1.11902687]
[1748049749296,1.08900056,663.12,662.42,1.11902687]
[1748049749539,1.08900056,663.11,662.42,1.11902687]
[1748049749702,1.08900056,663.1,662.42,1.11902687]
[1748049749903,1.4303215,663.15,662.42,1.11902687]
[1748049750206,1.57906987,663.14,662.51,1.11902687]
[1748049750404,1.08878038,663.13,662.51,1.11902687]
[1748049750603,1.08878038,663.12,662.51,1.11902687]
[1748049750805,1.08878038,663.11,662.51,1.11902687]
[1748049751007,0.30159089,663.15,662.51,1.11902687]
[1748049751206,1.08857732,663.14,662.51,1.11902687]
[1748049751400,1.08857732,663.13,662.51,1.11902687]
[1748049751608,1.08857732,663.12,662.51,1.11902687]
[1748049751817,1.08857732,663.11,662.51,1.11902687]
[1748049752002,0.30159089,663.15,662.51,1.11902687]
[1748049752202,1.57854207,663.14,662.51,1.11902687]
[1748049752405,1.08841579,663.13,662.51,1.11902687]
[1748049752630,1.08841579,663.12,662.51,1.11902687]
[1748049752901,0.30159089,663.15,662.51,1.11902687]
[1748049752902,1.08841579,663.11,662.51,1.11902687]
[1748049753107,1.08841579,663.1,662.51,1.11902687]
[1748049753310,0.30159089,663.15,662.51,1.11902687]
[1748049753506,1.57834515,663.14,662.51,1.11902687]
[1748049753811,1.08820791,663.13,662.49,1.11902687]
[1748049754013,1.08820791,663.12,662.49,1.11902687]
[1748049754211,1.08820791,663.11,662.49,1.11902687]
[1748049754512,0.30159089,663.15,662.49,1.11902687]
[1748049754739,1.57816398,663.14,662.49,1.11902687]
[1748049755010,1.0880831,663.13,662.49,1.11902687]
[1748049755212,1.0880831,663.12,662.49,1.11902687]
[1748049755410,1.0880831,663.11,662.49,1.11902687]
[1748049755611,0.30159089,663.15,662.49,1.11902687]
[1748049755912,1.5780285,663.14,662.49,1.11902687]
[1748049756212,1.08798988,663.13,662.49,1.11902687]
[1748049756415,1.08798988,663.12,662.49,1.11902687]
[1748049756607,1.08798988,663.11,662.49,1.11902687]
[1748049756833,0.30159089,663.15,662.49,1.11902687]
[1748049757009,1.57791167,663.14,662.46,1.11902687]
[1748049757213,1.08791014,663.13,662.46,1.11902687]
[1748049757413,1.08784351,663.12,662.46,1.11902687]
[1748049757613,1.08784351,663.11,662.46,1.11902687]
[1748049757815,0.30159089,663.15,662.46,1.11902687]
[1748049758015,1.08783373,663.14,662.46,1.11902687]
[1748049758210,1.08783373,663.13,662.46,1.11902687]
[1748049758418,1.08783373,663.12,662.46,1.11902687]
[1748049758613,0.30159089,663.15,662.46,1.11902687]
[1748049758812,1.08776764,663.14,662.46,1.11902687]
[1748049759008,1.08776764,663.13,662.46,1.11902687]
[1748049759210,1.08777071,663.12,662.46,1.11902687]
[1748049759512,0.30159089,663.15,662.46,1.11902687]
[1748049759513,1.08777071,663.11,662.46,1.11902687]
[1748049759713,0.30159089,663.15,662.46,1.11902687]
[1748049760022,1.08771317,663.14,662.46,1.11902687]
[1748049760212,1.08771317,663.13,662.46,1.11902687]
[1748049760412,1.08771317,663.12,662.46,1.11902687]
[1748049760611,0.30159089,663.15,662.47,1.028]
[1748049760813,1.08765748,663.14,662.47,1.028]
[1748049761111,1.08765748,663.13,662.48,1.11902687]
[1748049761412,1.08765748,663.12,662.48,1.11902687]
[1748049761615,0.30159089,663.15,662.48,1.11902687]
[1748049761812,1.08760365,663.14,662.48,1.11902687]
[1748049762019,1.08760365,663.13,662.48,1.11902687]
[1748049762220,0.30159089,663.15,662.48,1.11902687]
[1748049762416,1.08760365,663.14,662.48,1.11902687]
[1748049762612,1.08760365,663.13,662.48,1.11902687]
[1748049762813,0.30159089,663.15,662.48,1.11902687]
[1748049763017,1.08755937,663.14,662.48,1.11902687]
[1748049763315,1.08755937,663.13,662.48,1.11902687]
[1748049763513,0.30159089,663.15,662.48,1.11902687]
[1748049763718,1.08752106,663.14,662.48,1.11902687]
[1748049763914,1.08752106,663.13,662.48,1.11902687]
[1748049764115,0.30159089,663.15,662.48,1.11902687]
[1748049764320,1.0875194,663.14,662.48,1.11902687]
[1748049764523,1.08748286,663.13,662.48,1.11902687]
[1748049764715,0.30159089,663.15,662.48,1.11902687]
[1748049764919,1.0874841,663.14,662.48,1.11902687]
[1748049765119,1.0874841,663.13,662.48,1.11902687]
[1748049765322,0.30159089,663.15,662.48,1.11902687]
[1748049765522,1.08806056,663.14,662.48,1.11902687]
[1748049765822,0.30159089,663.15,662.48,1.11902687]
[1748049766022,1.08806375,663.14,662.48,1.11902687]
[1748049766218,0.30159089,663.15,662.48,1.11902687]
[1748049767922,0.30159089,663.15,662.47,2.14702687]
[1748049769028,0.30159089,663.15,662.48,1.329]
[1748049778127,0.30159089,663.15,662.52,1.11902687]
[1748049781836,0.30159089,663.15,662.5,1.11902687]
[1748049785838,0.30159089,663.15,662.52,1.11902687]
[1748049788542,0.30159089,663.15,662.53,1.135]
[1748049789739,0.30159089,663.15,662.6,1.11902687]
[1748049791243,0.30159089,663.15,662.61,1.375]
[1748049792048,1.12873061,663.37,662.61,1.375]
[1748049792244,1.57888955,663.36,662.61,1.375]
[1748049792450,1.57888955,663.35,662.61,1.375]
[1748049792646,1.57888955,663.34,662.61,1.375]
[1748049792847,1.578863,663.33,662.61,1.375]
[1748049793045,1.578863,663.32,662.61,1.375]
[1748049793247,1.08914575,663.31,662.61,1.375]
[1748049793447,1.08914575,663.3,662.61,1.375]
[1748049793755,1.08914575,663.29,662.61,1.375]
[1748049793947,1.08914575,663.28,662.61,1.375]
[1748049794148,1.12873061,663.42,662.61,1.375]
[1748049794349,1.57876496,663.41,662.61,1.375]
[1748049794646,1.57876496,663.4,662.61,1.375]
[1748049794847,1.57876496,663.39,662.61,1.375]
[1748049795044,1.57876496,663.38,662.61,1.375]
[1748049795254,1.57876496,663.37,662.61,1.375]
[1748049795448,0.26237122,663.74,662.61,1.375]
[1748049795449,1.57876496,663.36,662.63,1.11902687]
[1748049795644,1.57876496,663.35,662.63,1.11902687]
[1748049795843,1.57876496,663.34,662.63,1.11902687]
[1748049796044,1.57876496,663.33,662.63,1.11902687]
[1748049796252,1.57876496,663.32,662.63,1.11902687]
[1748049796444,1.08907142,663.31,662.63,1.11902687]
[1748049796757,1.08907142,663.3,662.63,1.11902687]
[1748049796949,1.08907142,663.29,662.63,1.11902687]
[1748049797148,1.08907142,663.28,662.63,1.11902687]
[1748049797350,1.12873061,663.43,662.63,1.11902687]
[1748049797551,1.57871926,663.42,662.63,1.11902687]
[1748049797752,1.57867308,663.41,662.63,1.11902687]
[1748049798052,1.57867308,663.4,662.63,1.11902687]
[1748049798251,1.57867308,663.39,662.63,1.11902687]
[1748049798452,1.57867308,663.38,662.65,1.11902687]
[1748049798655,1.57867308,663.37,662.65,1.11902687]
[1748049798855,1.57867308,663.36,662.65,1.11902687]
[1748049799065,1.57867308,663.35,662.65,1.11902687]
[1748049799252,1.57867308,663.34,662.65,1.11902687]
[1748049799453,1.08903977,663.33,662.65,1.11902687]
[1748049799650,1.08903977,663.32,662.65,1.11902687]
[1748049799855,1.08903977,663.31,662.65,1.11902687]
[1748049800051,1.12873061,663.42,662.65,1.11902687]
[1748049800258,1.57836918,663.41,662.65,1.11902687]
[1748049800555,1.57836918,663.4,662.65,1.11902687]
[1748049800756,1.57836918,663.39,662.65,1.11902687]
[1748049800959,1.57836918,663.38,662.65,1.11902687]
[1748049801151,1.57836918,663.37,662.65,1.11902687]
[1748049801352,1.57836918,663.36,662.65,1.11902687]
[1748049801556,1.57836918,663.35,662.65,1.11902687]
[1748049801753,1.0887232,663.34,662.69,1.11902687]
[1748049801955,1.0887232,663.33,662.69,1.11902687]
[1748049802157,1.0887232,663.32,662.69,1.11902687]
[1748049802356,1.0887232,663.31,662.69,1.11902687]
[1748049802556,1.12873061,663.4,662.69,1.11902687]
[1748049802760,1.57819825,663.39,662.69,1.11902687]
[1748049802962,1.57819825,663.38,662.69,1.11902687]
[1748049803156,1.57819825,663.37,662.69,1.11902687]
[1748049803458,1.57823565,663.36,662.69,1.11902687]
[1748049803658,1.57823565,663.35,662.69,1.11902687]
[1748049803858,1.08871934,663.34,662.69,1.11902687]
[1748049804055,1.08871934,663.33,662.69,1.11902687]
[1748049804260,1.08871934,663.32,662.72,1.11902687]
[1748049804461,1.08871934,663.31,662.72,1.11902687]
[1748049804661,1.12873061,663.38,662.72,1.11902687]
[1748049804861,1.57813506,663.37,662.72,1.11902687]
[1748049805055,1.57813506,663.36,662.72,1.11902687]
[1748049805268,1.12873061,663.38,662.72,1.11902687]
[1748049805269,1.57813506,663.35,662.72,1.11902687]
[1748049805460,1.08863808,663.34,662.72,1.11902687]
[1748049805658,1.08863808,663.33,662.72,1.11902687]
[1748049805862,1.08863808,663.32,662.72,1.11902687]
[1748049806062,1.08863808,663.31,662.72,1.11902687]
[1748049806262,1.12873061,663.38,662.72,1.11902687]
[1748049806565,1.57814417,663.37,662.72,1.11902687]
[1748049806764,1.57814417,663.36,662.72,1.11902687]
[1748049806963,1.57814417,663.35,662.71,1.11902687]
[1748049807159,1.08864433,663.34,662.71,1.11902687]
[1748049807359,1.08864433,663.33,662.71,1.11902687]
[1748049807559,1.08864433,663.32,662.71,1.11902687]
[1748049807759,1.08864433,663.31,662.71,1.11902687]
[1748049808062,1.12873061,663.38,662.71,1.11902687]
[1748049808263,1.57817737,663.37,662.71,1.11902687]
[1748049808459,1.57817737,663.36,662.71,1.11902687]
[1748049808664,1.57817737,663.35,662.71,1.11902687]
[1748049808970,1.0887116,663.34,662.71,1.11902687]
[1748049809167,1.0887116,663.33,662.71,1.11902687]
[1748049809359,1.0887116,663.32,662.71,1.11902687]
[1748049809562,1.0887116,663.31,662.73,1.11902687]
[1748049809766,1.08867256,663.3,662.73,1.11902687]
[1748049809963,1.12873061,663.36,662.73,1.11902687]
[1748049810164,1.57818632,663.35,662.73,1.11902687]
[1748049810364,1.08867315,663.34,662.73,1.11902687]
[1748049810565,1.08867315,663.33,662.73,1.11902687]
[1748049810860,1.08867315,663.32,662.73,1.11902687]
[1748049811064,1.08867315,663.31,662.73,1.11902687]
[1748049811266,1.12873061,663.36,662.73,1.11902687]
[1748049811465,1.57812405,663.35,662.73,1.11902687]
[1748049811670,1.08863066,663.34,662.73,1.11902687]
[1748049811869,1.08863066,663.33,662.73,1.11902687]
[1748049812067,1.08863066,663.32,662.73,1.11902687]
[1748049812274,1.08863066,663.31,662.73,1.11902687]
[1748049812469,1.12873061,663.36,662.73,1.11902687]
[1748049812665,1.57809303,663.35,662.73,1.11902687]
[1748049812866,0.26237122,663.74,662.7,1.11902687]
[1748049812867,1.08860896,663.34,662.7,1.11902687]
[1748049813170,1.08860896,663.33,662.7,1.11902687]
[1748049813468,1.08860896,663.32,662.7,1.11902687]
[1748049813666,1.08860896,663.31,662.7,1.11902687]
[1748049813871,1.12873061,663.39,662.7,1.11902687]
[1748049814066,1.57809571,663.38,662.7,1.11902687]
[1748049814271,1.57809571,663.37,662.7,1.11902687]
[1748049814467,1.57809571,663.36,662.7,1.11902687]
[1748049814670,1.57809571,663.35,662.7,1.11902687]
[1748049814864,1.08861085,663.34,662.7,1.11902687]
[1748049815164,1.08861085,663.33,662.7,1.11902687]
[1748049815367,1.08861085,663.32,662.67,1.11902687]
[1748049815571,1.08861085,663.31,662.67,1.11902687]
[1748049815771,1.0892543,663.3,662.67,1.11902687]
[1748049815972,1.12873061,663.41,662.67,1.11902687]
[1748049816171,1.57875282,663.4,662.67,1.11902687]
[1748049816371,1.57875282,663.39,662.67,1.11902687]
[1748049816571,1.57875282,663.38,662.67,1.11902687]
[1748049816871,1.57875282,663.37,662.67,1.11902687]
[1748049817072,1.57875282,663.36,662.67,1.11902687]
[1748049817274,1.57875282,663.35,662.67,1.11902687]
[1748049817469,1.08925273,663.34,662.67,1.11902687]
[1748049817669,1.08925273,663.33,662.67,1.11902687]
[1748049817870,1.08925273,663.32,662.67,1.11902687]
[1748049818070,1.08925273,663.31,662.67,1.11902687]
[1748049818266,1.08925273,663.3,662.67,1.11902687]
[1748049818571,1.12873061,663.41,662.67,1.11902687]
[1748049818870,1.57890825,663.4,662.67,1.11902687]
[1748049819075,1.57890825,663.39,662.67,1.11902687]
[1748049819369,1.57890825,663.38,662.67,1.11902687]
[1748049819568,1.57890825,663.37,662.68,1.11902687]
[1748049819766,1.57895781,663.36,662.68,1.11902687]
[1748049819970,1.57895781,663.35,662.68,1.11902687]
[1748049820272,1.57895781,663.34,662.68,1.11902687]
[1748049820480,1.08940949,663.33,662.68,1.11902687]
[1748049820772,1.08940949,663.32,662.68,1.11902687]
[1748049821077,1.08940949,663.31,662.68,1.11902687]
[1748049821269,1.08940949,663.3,662.68,2.39002687]
[1748049821476,1.12873061,663.41,662.68,2.39002687]
[1748049821669,1.57910506,663.4,662.68,2.39002687]
[1748049821871,1.57910506,663.39,662.68,2.39002687]
[1748049822169,1.57910506,663.38,662.68,2.39002687]
[1748049822376,1.57910506,663.37,662.68,2.39002687]
[1748049822567,1.57910506,663.36,662.68,2.39002687]
[1748049822777,1.57910506,663.35,662.68,2.39002687]
[1748049822971,1.57910506,663.34,662.68,2.39002687]
[1748049823280,0.48963769,663.33,662.68,2.39002687]
[1748049823473,1.5793016,663.32,662.68,2.39002687]
[1748049823779,1.5793016,663.31,662.68,2.39002687]
[1748049824074,1.5793016,663.3,662.68,2.39002687]
[1748049824274,1.08966391,663.29,662.68,2.39002687]